[Event "Early-Titled-Tuesday-Blitz-October-10-2023"]
[Site "Chess.com"]
[Date "2023.10.10"]
[Round "11"]
[White "Xqswdc"]
[Black "Karttunen"]
[Result "0-1"]
[WhiteElo "2326"]
[BlackElo "2604"]
[TimeControl "180+1"]
[EndTime "10:01:44 PDT"]
[Termination "Karttunen won by resignation"]

1. e4 {[%clk 0:03:00.9]} 1... e5 {[%clk 0:02:58.2]} 2. Nf3 {[%clk 0:03:00.6]}
2... Nc6 {[%clk 0:02:58.7]} 3. Nc3 {[%clk 0:03:00.2]} 3... Nf6 {[%clk
0:02:58.7]} 4. d4 {[%clk 0:03:00.7]} 4... exd4 {[%clk 0:02:57.5]} 5. Nd5 {[%clk
0:03:00.6]} 5... Nb4 {[%clk 0:02:52.2]} 6. Bc4 {[%clk 0:02:59.6]} 6... Nbxd5
{[%clk 0:02:42.9]} 7. exd5 {[%clk 0:02:59.9]} 7... Bb4+ {[%clk 0:02:42.1]} 8.
Kf1 {[%clk 0:02:59.7]} 8... c5 {[%clk 0:02:25.4]} 9. a3 {[%clk 0:02:58.7]} 9...
Ba5 {[%clk 0:02:25]} 10. b4 {[%clk 0:02:50]} 10... Bb6 {[%clk 0:02:25.3]} 11.
Bb2 {[%clk 0:02:38.3]} 11... O-O {[%clk 0:02:16.9]} 12. bxc5 {[%clk 0:02:37.4]}
12... Bxc5 {[%clk 0:02:17.1]} 13. Bxd4 {[%clk 0:02:37]} 13... Bxd4 {[%clk
0:02:10.3]} 14. Qxd4 {[%clk 0:02:36.7]} 14... d6 {[%clk 0:02:10.9]} 15. h4
{[%clk 0:02:30.7]} 15... Bf5 {[%clk 0:02:03.8]} 16. h5 {[%clk 0:02:19]} 16... h6
{[%clk 0:02:03.2]} 17. Rh4 {[%clk 0:02:17.7]} 17... Re8 {[%clk 0:01:50.9]} 18.
g4 {[%clk 0:02:17.5]} 18... Re4 {[%clk 0:01:43.5]} 19. Qd2 {[%clk 0:01:47.3]}
19... Bxg4 {[%clk 0:01:25.5]} 20. Bd3 {[%clk 0:01:31.2]} 20... Bxf3 {[%clk
0:01:25.3]} 21. Bxe4 {[%clk 0:01:30.6]} 21... Bxe4 {[%clk 0:01:25.7]} 22. Re1
{[%clk 0:01:29.3]} 22... Bxd5 {[%clk 0:01:16.9]} 23. Rg4 {[%clk 0:01:28.4]} 0-1

[Event "Early-Titled-Tuesday-Blitz-October-10-2023"]
[Site "Chess.com"]
[Date "2023.10.10"]
[Round "11"]
[White "VOneChess"]
[Black "kingapolak"]
[Result "1-0"]
[WhiteElo "2248"]
[BlackElo "2051"]
[TimeControl "180+1"]
[EndTime "10:01:59 PDT"]
[Termination "VOneChess won by resignation"]

1. e4 {[%clk 0:03:00.9]} 1... c5 {[%clk 0:02:59.1]} 2. Nf3 {[%clk 0:03:00.8]}
2... e6 {[%clk 0:02:56.7]} 3. d4 {[%clk 0:03:01]} 3... cxd4 {[%clk 0:02:56.9]}
4. Nxd4 {[%clk 0:03:01.6]} 4... Nc6 {[%clk 0:02:55.4]} 5. Nc3 {[%clk 0:03:01.1]}
5... Qc7 {[%clk 0:02:54.4]} 6. f4 {[%clk 0:03:00.7]} 6... a6 {[%clk 0:02:45.1]}
7. Nxc6 {[%clk 0:02:52.4]} 7... Qxc6 {[%clk 0:02:30.6]} 8. Bd3 {[%clk
0:02:45.6]} 8... d6 {[%clk 0:02:28.2]} 9. O-O {[%clk 0:02:42.7]} 9... b5 {[%clk
0:02:24]} 10. Qe2 {[%clk 0:02:25.9]} 10... b4 {[%clk 0:02:02.3]} 11. Nd5 {[%clk
0:02:24.6]} 11... Rb8 {[%clk 0:01:50.5]} 12. Bd2 {[%clk 0:01:56]} 12... Nf6
{[%clk 0:01:41.1]} 13. Nxf6+ {[%clk 0:01:31.2]} 13... gxf6 {[%clk 0:01:40.8]}
14. Kh1 {[%clk 0:01:27.1]} 14... h5 {[%clk 0:01:35.8]} 15. a3 {[%clk 0:01:27.2]}
15... a5 {[%clk 0:01:21.4]} 16. axb4 {[%clk 0:01:23.7]} 16... axb4 {[%clk
0:01:21.1]} 17. e5 {[%clk 0:01:18.3]} 17... Bb7 {[%clk 0:01:18.6]} 18. Bb5
{[%clk 0:01:16.3]} 1-0

[Event "Early-Titled-Tuesday-Blitz-October-10-2023"]
[Site "Chess.com"]
[Date "2023.10.10"]
[Round "11"]
[White "SanchezKelvin"]
[Black "Riku-gan"]
[Result "0-1"]
[WhiteElo "2608"]
[BlackElo "2846"]
[TimeControl "180+1"]
[EndTime "10:02:13 PDT"]
[Termination "Riku-gan won on time"]

1. e4 {[%clk 0:03:00.9]} 1... d5 {[%clk 0:02:59.1]} 2. exd5 {[%clk 0:02:59.7]}
2... Nf6 {[%clk 0:02:58.2]} 3. c4 {[%clk 0:02:58.8]} 3... c6 {[%clk 0:02:56.9]}
4. d4 {[%clk 0:02:58.9]} 4... Bg4 {[%clk 0:02:56.3]} 5. Qb3 {[%clk 0:02:53.1]}
5... cxd5 {[%clk 0:02:36.2]} 6. Qxb7 {[%clk 0:02:49.8]} 6... Nbd7 {[%clk
0:02:32.8]} 7. Nc3 {[%clk 0:02:43.8]} 7... Rb8 {[%clk 0:02:20.9]} 8. Qa6 {[%clk
0:02:38.5]} 8... e5 {[%clk 0:02:18.9]} 9. dxe5 {[%clk 0:02:14.8]} 9... Nc5
{[%clk 0:02:14]} 10. Qxa7 {[%clk 0:01:58]} 10... Nfe4 {[%clk 0:02:06.7]} 11. Bg5
{[%clk 0:01:37.1]} 11... Nxg5 {[%clk 0:02:00.9]} 12. cxd5 {[%clk 0:01:32.4]}
12... Rb7 {[%clk 0:01:58]} 13. Bb5+ {[%clk 0:01:29]} 13... Bd7 {[%clk
0:01:54.5]} 14. Bxd7+ {[%clk 0:01:20.3]} 14... Rxd7 {[%clk 0:01:55.4]} 0-1

[Event "Early-Titled-Tuesday-Blitz-October-10-2023"]
[Site "Chess.com"]
[Date "2023.10.10"]
[Round "11"]
[White "rasmussvane"]
[Black "seopie"]
[Result "1-0"]
[WhiteElo "2996"]
[BlackElo "2790"]
[TimeControl "180+1"]
[EndTime "10:02:16 PDT"]
[Termination "rasmussvane won by checkmate"]

1. Nf3 {[%clk 0:03:00.9]} 1... a6 {[%clk 0:03:00.3]} 2. g3 {[%clk 0:02:57.5]}
2... b5 {[%clk 0:02:57.5]} 3. Bg2 {[%clk 0:02:57.8]} 3... Bb7 {[%clk 0:02:58]}
4. O-O {[%clk 0:02:58.3]} 4... Nf6 {[%clk 0:02:58.2]} 5. d4 {[%clk 0:02:58.6]}
5... e6 {[%clk 0:02:56.7]} 6. Bg5 {[%clk 0:02:58.3]} 6... h6 {[%clk 0:02:56.3]}
7. Bxf6 {[%clk 0:02:53.7]} 7... Qxf6 {[%clk 0:02:57.2]} 8. Qd3 {[%clk
0:02:48.2]} 8... c5 {[%clk 0:02:55.1]} 9. c3 {[%clk 0:02:44.8]} 9... d5 {[%clk
0:02:49.7]} 10. Nbd2 {[%clk 0:02:36.7]} 10... Qd8 {[%clk 0:02:40.4]} 11. e4
{[%clk 0:02:33.7]} 11... Be7 {[%clk 0:02:38.7]} 12. exd5 {[%clk 0:02:20.8]}
12... Bxd5 {[%clk 0:02:37.8]} 13. dxc5 {[%clk 0:02:18.4]} 13... Bxc5 {[%clk
0:02:36.7]} 14. Ne5 {[%clk 0:02:12.2]} 14... Bxg2 {[%clk 0:02:36.3]} 15. Qxd8+
{[%clk 0:02:12]} 15... Kxd8 {[%clk 0:02:36.5]} 16. Nxf7+ {[%clk 0:01:54.8]}
16... Ke7 {[%clk 0:02:20.6]} 17. Nxh8 {[%clk 0:01:54.8]} 17... Bxf1 {[%clk
0:02:20]} 18. Kxf1 {[%clk 0:01:55.7]} 18... g5 {[%clk 0:02:14]} 19. Ne4 {[%clk
0:01:42.7]} 19... Nd7 {[%clk 0:02:13.3]} 20. Ng6+ {[%clk 0:01:39]} 20... Kf7
{[%clk 0:02:13.4]} 21. Rd1 {[%clk 0:01:39]} 21... Kxg6 {[%clk 0:02:10.5]} 22.
Rxd7 {[%clk 0:01:38.9]} 22... Bf8 {[%clk 0:02:01.2]} 23. Ke2 {[%clk 0:01:31.7]}
23... a5 {[%clk 0:01:59.7]} 24. Rb7 {[%clk 0:01:24.9]} 24... b4 {[%clk
0:01:59.3]} 25. c4 {[%clk 0:01:25.4]} 25... a4 {[%clk 0:01:59.2]} 26. c5 {[%clk
0:01:21]} 26... Rc8 {[%clk 0:01:56.8]} 27. Rxb4 {[%clk 0:01:20.7]} 27... Rxc5
{[%clk 0:01:53.6]} 28. Nxc5 {[%clk 0:01:20]} 28... a3 {[%clk 0:01:53.9]} 29.
bxa3 {[%clk 0:01:17.3]} 29... h5 {[%clk 0:01:51.6]} 30. Nxe6 {[%clk 0:01:15.7]}
30... h4 {[%clk 0:01:49.5]} 31. gxh4 {[%clk 0:01:14.9]} 31... g4 {[%clk
0:01:49.4]} 32. Nxf8+ {[%clk 0:01:13.5]} 32... Kh5 {[%clk 0:01:49.1]} 33. Nd7
{[%clk 0:01:10.5]} 33... Kh6 {[%clk 0:01:48.7]} 34. Rxg4 {[%clk 0:01:07.8]}
34... Kh7 {[%clk 0:01:48.5]} 35. a4 {[%clk 0:01:07.3]} 35... Kh6 {[%clk
0:01:48.5]} 36. a5 {[%clk 0:01:07.8]} 36... Kh5 {[%clk 0:01:48.7]} 37. f3 {[%clk
0:01:07.9]} 37... Kh6 {[%clk 0:01:48.6]} 38. a6 {[%clk 0:01:08.5]} 38... Kh5
{[%clk 0:01:48.7]} 39. a7 {[%clk 0:01:09]} 39... Kh6 {[%clk 0:01:47.5]} 40. a8=Q
{[%clk 0:01:07.5]} 40... Kh7 {[%clk 0:01:48.4]} 41. Nf6+ {[%clk 0:01:07.3]}
41... Kh6 {[%clk 0:01:49.2]} 42. Qh8# {[%clk 0:01:07.5]} 1-0

[Event "Early-Titled-Tuesday-Blitz-October-10-2023"]
[Site "Chess.com"]
[Date "2023.10.10"]
[Round "11"]
[White "Rosh1610"]
[Black "LaPiToB"]
[Result "1-0"]
[WhiteElo "2430"]
[BlackElo "2305"]
[TimeControl "180+1"]
[EndTime "10:02:41 PDT"]
[Termination "Rosh1610 won by resignation"]

1. e4 {[%clk 0:03:00.9]} 1... c6 {[%clk 0:02:58.1]} 2. Nc3 {[%clk 0:02:59.8]}
2... d5 {[%clk 0:02:57.6]} 3. Nf3 {[%clk 0:02:59.1]} 3... dxe4 {[%clk
0:02:57.1]} 4. Nxe4 {[%clk 0:02:59.7]} 4... Nf6 {[%clk 0:02:57.7]} 5. Qe2 {[%clk
0:02:59.2]} 5... Nxe4 {[%clk 0:02:51.9]} 6. Qxe4 {[%clk 0:02:58.2]} 6... Qa5
{[%clk 0:02:52.5]} 7. Bc4 {[%clk 0:02:42]} 7... Bf5 {[%clk 0:02:50.1]} 8. Qf4
{[%clk 0:02:41.5]} 8... e6 {[%clk 0:02:42.7]} 9. c3 {[%clk 0:02:27.3]} 9... Nd7
{[%clk 0:02:32.3]} 10. O-O {[%clk 0:02:24.9]} 10... Be7 {[%clk 0:02:30.3]} 11.
d4 {[%clk 0:02:24.4]} 11... O-O {[%clk 0:02:27.2]} 12. Qg3 {[%clk 0:02:23.7]}
12... Bg6 {[%clk 0:02:26.3]} 13. Bf4 {[%clk 0:02:21.2]} 13... Nf6 {[%clk
0:02:24]} 14. Bc7 {[%clk 0:02:14.8]} 14... Qh5 {[%clk 0:02:14.4]} 15. Rfe1
{[%clk 0:02:02]} 15... Rac8 {[%clk 0:02:06.2]} 16. Be5 {[%clk 0:01:54.2]} 16...
Ne4 {[%clk 0:01:45.4]} 17. Qf4 {[%clk 0:01:52.4]} 17... Nf6 {[%clk 0:01:25.2]}
18. h3 {[%clk 0:01:43.1]} 18... Nd5 {[%clk 0:01:18.8]} 19. Qh2 {[%clk
0:01:40.9]} 19... b5 {[%clk 0:01:13.9]} 20. Bxd5 {[%clk 0:01:39.2]} 20... cxd5
{[%clk 0:01:13.6]} 21. g4 {[%clk 0:01:38.6]} 21... Qh6 {[%clk 0:01:10.9]} 22.
Bf4 {[%clk 0:01:38.2]} 22... Bd6 {[%clk 0:00:56.4]} 23. Bxd6 {[%clk 0:01:34.8]}
23... Be4 {[%clk 0:00:56.3]} 24. Bxf8 {[%clk 0:01:31.8]} 24... Rxf8 {[%clk
0:00:54.4]} 25. Ne5 {[%clk 0:01:31.1]} 25... f5 {[%clk 0:00:51.1]} 26. f3 {[%clk
0:01:25.7]} 26... Bc2 {[%clk 0:00:49.9]} 27. Qxc2 {[%clk 0:01:24]} 27... fxg4
{[%clk 0:00:49.5]} 28. hxg4 {[%clk 0:01:23.7]} 28... Qh3 {[%clk 0:00:48.9]} 29.
Qg2 {[%clk 0:01:22.8]} 1-0

[Event "Early-Titled-Tuesday-Blitz-October-10-2023"]
[Site "Chess.com"]
[Date "2023.10.10"]
[Round "11"]
[White "BeanScreen"]
[Black "Sergey85Rodchenkov"]
[Result "1-0"]
[WhiteElo "2700"]
[BlackElo "2499"]
[TimeControl "180+1"]
[EndTime "10:02:42 PDT"]
[Termination "BeanScreen won by resignation"]

1. e4 {[%clk 0:03:00.9]} 1... c5 {[%clk 0:03:00.3]} 2. Nf3 {[%clk 0:03:00.1]}
2... d6 {[%clk 0:03:00.9]} 3. d4 {[%clk 0:03:00.4]} 3... cxd4 {[%clk 0:03:01.8]}
4. Nxd4 {[%clk 0:03:01]} 4... Nf6 {[%clk 0:03:02.5]} 5. Nc3 {[%clk 0:03:01.3]}
5... a6 {[%clk 0:03:03.2]} 6. Be3 {[%clk 0:03:01.7]} 6... e5 {[%clk 0:03:03.5]}
7. Nb3 {[%clk 0:03:02.1]} 7... Be7 {[%clk 0:03:04.2]} 8. h3 {[%clk 0:03:02]}
8... Be6 {[%clk 0:03:03.8]} 9. f4 {[%clk 0:03:01.6]} 9... Nc6 {[%clk 0:02:53.7]}
10. f5 {[%clk 0:03:01.4]} 10... Bxb3 {[%clk 0:02:53.9]} 11. axb3 {[%clk
0:03:02.3]} 11... Nb4 {[%clk 0:02:53.3]} 12. Bc4 {[%clk 0:03:01.3]} 12... d5
{[%clk 0:02:53.8]} 13. Bxd5 {[%clk 0:02:44.3]} 13... Nbxd5 {[%clk 0:02:30.2]}
14. Nxd5 {[%clk 0:02:45.2]} 14... Nxd5 {[%clk 0:02:21.7]} 15. Qxd5 {[%clk
0:02:46.1]} 15... Bh4+ {[%clk 0:02:21]} 16. Ke2 {[%clk 0:02:46.2]} 16... Qc8
{[%clk 0:02:14]} 17. Qxe5+ {[%clk 0:02:44.3]} 17... Be7 {[%clk 0:02:10]} 18. c4
{[%clk 0:02:41.7]} 18... Qc6 {[%clk 0:01:56.8]} 19. Rhd1 {[%clk 0:02:30.1]}
19... O-O {[%clk 0:01:38.8]} 20. Qxe7 {[%clk 0:02:04.8]} 20... Rae8 {[%clk
0:01:38.9]} 21. Qc5 {[%clk 0:02:04.9]} 21... Qxe4 {[%clk 0:01:37.2]} 22. Kf2
{[%clk 0:02:05.1]} 22... b6 {[%clk 0:00:39.8]} 23. Qxb6 {[%clk 0:02:04.8]} 23...
Qxf5+ {[%clk 0:00:26.8]} 24. Kg1 {[%clk 0:02:04.9]} 24... Re6 {[%clk 0:00:27]}
25. Qc5 {[%clk 0:02:04.3]} 25... Qc2 {[%clk 0:00:21.1]} 26. Rd2 {[%clk 0:01:55]}
26... Qe4 {[%clk 0:00:20.5]} 27. Re1 {[%clk 0:01:50]} 27... Rg6 {[%clk 0:00:19]}
28. Qxf8+ {[%clk 0:01:49.5]} 28... Kxf8 {[%clk 0:00:16.4]} 29. Bc5+ {[%clk
0:01:50.2]} 1-0

[Event "Early-Titled-Tuesday-Blitz-October-10-2023"]
[Site "Chess.com"]
[Date "2023.10.10"]
[Round "11"]
[White "Agibileg"]
[Black "ChessTankMan"]
[Result "0-1"]
[WhiteElo "2675"]
[BlackElo "2543"]
[TimeControl "180+1"]
[EndTime "10:02:56 PDT"]
[Termination "ChessTankMan won by resignation"]

1. d4 {[%clk 0:03:00.9]} 1... Nf6 {[%clk 0:02:57.7]} 2. c4 {[%clk 0:03:01.4]}
2... e6 {[%clk 0:02:56.2]} 3. Nc3 {[%clk 0:03:01.9]} 3... Bb4 {[%clk 0:02:54.6]}
4. f3 {[%clk 0:03:02]} 4... d5 {[%clk 0:02:53.7]} 5. a3 {[%clk 0:03:01.9]} 5...
Bxc3+ {[%clk 0:02:52.9]} 6. bxc3 {[%clk 0:03:02.8]} 6... c6 {[%clk 0:02:52.9]}
7. e3 {[%clk 0:03:02.4]} 7... b6 {[%clk 0:02:51.9]} 8. Bd3 {[%clk 0:03:01.7]}
8... O-O {[%clk 0:02:49.8]} 9. Ne2 {[%clk 0:03:00.6]} 9... Ba6 {[%clk
0:02:50.1]} 10. cxd5 {[%clk 0:03:00]} 10... cxd5 {[%clk 0:02:48.9]} 11. O-O
{[%clk 0:02:59.3]} 11... Bxd3 {[%clk 0:02:48.4]} 12. Qxd3 {[%clk 0:02:58.5]}
12... Qc7 {[%clk 0:02:49]} 13. e4 {[%clk 0:02:58.5]} 13... Nc6 {[%clk
0:02:47.8]} 14. e5 {[%clk 0:02:56.7]} 14... Nd7 {[%clk 0:02:47.9]} 15. f4 {[%clk
0:02:57.5]} 15... Rac8 {[%clk 0:02:48.2]} 16. f5 {[%clk 0:02:57.5]} 16... exf5
{[%clk 0:02:37.1]} 17. Qxf5 {[%clk 0:02:54.2]} 17... Rce8 {[%clk 0:02:33.9]} 18.
Bh6 {[%clk 0:02:50.8]} 18... gxh6 {[%clk 0:02:30.2]} 19. Qh5 {[%clk 0:02:38.2]}
19... Ncxe5 {[%clk 0:02:26.4]} 20. dxe5 {[%clk 0:02:35.3]} 20... Qxe5 {[%clk
0:02:24.7]} 21. Qg4+ {[%clk 0:02:34.5]} 21... Qg5 {[%clk 0:02:20.4]} 22. Qxg5+
{[%clk 0:02:22.1]} 22... hxg5 {[%clk 0:02:21.3]} 23. Nd4 {[%clk 0:02:22.2]}
23... f6 {[%clk 0:02:11.9]} 24. Rf5 {[%clk 0:02:15.4]} 24... Ne5 {[%clk
0:02:07.4]} 25. Raf1 {[%clk 0:02:15.2]} 25... Kg7 {[%clk 0:02:06.7]} 26. h4
{[%clk 0:02:14.8]} 26... h6 {[%clk 0:02:06.8]} 27. a4 {[%clk 0:02:03.3]} 27...
Kg6 {[%clk 0:02:05.5]} 28. h5+ {[%clk 0:01:55.5]} 28... Kxh5 {[%clk 0:02:00.3]}
29. Rxf6 {[%clk 0:01:53.5]} 29... Rxf6 {[%clk 0:02:00.4]} 30. Rxf6 {[%clk
0:01:54]} 30... Ng4 {[%clk 0:02:01]} 31. Re6 {[%clk 0:01:48.9]} 31... Rxe6
{[%clk 0:01:47.6]} 32. Nxe6 {[%clk 0:01:49.8]} 32... Kg6 {[%clk 0:01:47.7]} 33.
Nc7 {[%clk 0:01:33.3]} 33... Ne3 {[%clk 0:01:47.4]} 34. Nb5 {[%clk 0:01:33.1]}
34... a6 {[%clk 0:01:45.5]} 35. Nc7 {[%clk 0:01:32.3]} 35... a5 {[%clk 0:01:42]}
36. Na8 {[%clk 0:01:24.7]} 36... Nc4 {[%clk 0:01:40.5]} 37. Nc7 {[%clk
0:01:25.6]} 37... Nb2 {[%clk 0:01:29]} 38. Nxd5 {[%clk 0:01:24.2]} 38... Nxa4
{[%clk 0:01:29.1]} 39. c4 {[%clk 0:01:25.1]} 39... Kf5 {[%clk 0:01:28.3]} 40.
Kh2 {[%clk 0:01:25.3]} 40... Ke5 {[%clk 0:01:27.9]} 41. Kh3 {[%clk 0:01:22.3]}
41... b5 {[%clk 0:01:28.2]} 42. Ne3 {[%clk 0:01:20.4]} 42... b4 {[%clk
0:01:27.1]} 43. Kg4 {[%clk 0:01:19]} 43... Kd4 {[%clk 0:01:26.4]} 44. Nd1 {[%clk
0:01:18.2]} 44... Kxc4 {[%clk 0:01:25.4]} 45. Kh5 {[%clk 0:01:18.7]} 45... b3
{[%clk 0:01:25.5]} 46. g4 {[%clk 0:01:16]} 46... b2 {[%clk 0:01:25.4]} 47. Nxb2+
{[%clk 0:01:15.5]} 47... Nxb2 {[%clk 0:01:26]} 48. Kxh6 {[%clk 0:01:16.1]} 48...
Nd3 {[%clk 0:01:26.7]} 49. Kxg5 {[%clk 0:01:17]} 49... Ne5 {[%clk 0:01:27.1]}
0-1

[Event "Early-Titled-Tuesday-Blitz-October-10-2023"]
[Site "Chess.com"]
[Date "2023.10.10"]
[Round "11"]
[White "feuervogel1000000"]
[Black "ArtemDyachuk"]
[Result "1-0"]
[WhiteElo "2552"]
[BlackElo "2671"]
[TimeControl "180+1"]
[EndTime "10:03:02 PDT"]
[Termination "feuervogel1000000 won by resignation"]

1. d4 {[%clk 0:03:00.9]} 1... Nf6 {[%clk 0:02:55.5]} 2. c4 {[%clk 0:02:59.7]}
2... e6 {[%clk 0:02:55.2]} 3. Nf3 {[%clk 0:02:59]} 3... c5 {[%clk 0:02:53.3]} 4.
d5 {[%clk 0:02:58.4]} 4... d6 {[%clk 0:02:53]} 5. Nc3 {[%clk 0:02:57.9]} 5...
exd5 {[%clk 0:02:52]} 6. cxd5 {[%clk 0:02:58.8]} 6... g6 {[%clk 0:02:51.7]} 7.
e4 {[%clk 0:02:58.8]} 7... Bg7 {[%clk 0:02:51.7]} 8. h3 {[%clk 0:02:59.1]} 8...
O-O {[%clk 0:02:51.5]} 9. Bd3 {[%clk 0:02:59.3]} 9... b5 {[%clk 0:02:51.9]} 10.
Bxb5 {[%clk 0:02:53.1]} 10... Nxe4 {[%clk 0:02:51.4]} 11. Nxe4 {[%clk 0:02:54]}
11... Qa5+ {[%clk 0:02:51.5]} 12. Nfd2 {[%clk 0:02:51.1]} 12... Qxb5 {[%clk
0:02:51.1]} 13. Nxd6 {[%clk 0:02:51.5]} 13... Qa6 {[%clk 0:02:52]} 14. N2c4
{[%clk 0:02:51.6]} 14... Nd7 {[%clk 0:02:52.6]} 15. O-O {[%clk 0:02:50.4]} 15...
Ne5 {[%clk 0:02:52.2]} 16. Nxe5 {[%clk 0:02:46.4]} 16... Qxd6 {[%clk 0:02:52.6]}
17. Nc4 {[%clk 0:02:45.8]} 17... Qa6 {[%clk 0:02:52]} 18. Ne3 {[%clk 0:02:25.1]}
18... Rb8 {[%clk 0:02:50.9]} 19. Qc2 {[%clk 0:02:22.4]} 19... Bd7 {[%clk
0:02:38]} 20. a4 {[%clk 0:02:00.9]} 20... Rfc8 {[%clk 0:02:35.2]} 21. Rd1 {[%clk
0:01:53]} 21... Rb4 {[%clk 0:02:32.1]} 22. Ra3 {[%clk 0:01:49.2]} 22... Rxa4
{[%clk 0:02:24.1]} 23. Rxa4 {[%clk 0:01:36.9]} 23... Bxa4 {[%clk 0:02:25]} 24.
b3 {[%clk 0:01:37.4]} 24... Bb5 {[%clk 0:02:24.7]} 25. Bb2 {[%clk 0:01:36]}
25... Qa2 {[%clk 0:02:19.4]} 26. Bxg7 {[%clk 0:01:32.7]} 26... Qxc2 {[%clk
0:02:18.3]} 27. Nxc2 {[%clk 0:01:33.6]} 27... Kxg7 {[%clk 0:02:18.8]} 28. Na3
{[%clk 0:01:33.7]} 28... Ba6 {[%clk 0:02:16.3]} 29. d6 {[%clk 0:01:14.2]} 29...
Kf6 {[%clk 0:02:09.9]} 30. d7 {[%clk 0:01:13]} 30... Rd8 {[%clk 0:02:00.5]} 31.
Rd6+ {[%clk 0:01:12]} 31... Ke7 {[%clk 0:02:01.1]} 32. Rxa6 {[%clk 0:01:12.6]}
32... Rxd7 {[%clk 0:02:02]} 33. Kf1 {[%clk 0:01:11.2]} 33... Rb7 {[%clk
0:02:00.2]} 34. Nc4 {[%clk 0:01:08.4]} 34... Rxb3 {[%clk 0:01:59.3]} 35. Rxa7+
{[%clk 0:01:08.6]} 35... Kf6 {[%clk 0:01:59.7]} 36. Ke2 {[%clk 0:01:07.1]} 36...
Rc3 {[%clk 0:01:57.9]} 37. Ne3 {[%clk 0:01:06.9]} 37... Ke6 {[%clk 0:01:57.5]}
38. Kd2 {[%clk 0:01:05.8]} 38... Rb3 {[%clk 0:01:57.2]} 39. Kc2 {[%clk
0:01:05.5]} 39... Rb4 {[%clk 0:01:55.5]} 40. Kc3 {[%clk 0:01:03.8]} 40... Rb1
{[%clk 0:01:55.1]} 41. f4 {[%clk 0:00:59.9]} 41... Rb4 {[%clk 0:01:49]} 42. Ra6+
{[%clk 0:00:59.2]} 42... Kd7 {[%clk 0:01:48.9]} 43. Nc4 {[%clk 0:00:55.6]} 43...
Ke7 {[%clk 0:01:47.9]} 44. Ra5 {[%clk 0:00:52.8]} 44... Rb1 {[%clk 0:01:46]} 45.
Rxc5 {[%clk 0:00:52.9]} 45... Rg1 {[%clk 0:01:46.9]} 46. Ne3 {[%clk 0:00:51.7]}
46... Kf6 {[%clk 0:01:45.2]} 47. Kd3 {[%clk 0:00:51]} 47... h5 {[%clk
0:01:44.8]} 48. Ke4 {[%clk 0:00:50.7]} 48... Re1 {[%clk 0:01:44.5]} 49. g4
{[%clk 0:00:49.7]} 49... Ke6 {[%clk 0:01:45.4]} 50. gxh5 {[%clk 0:00:48.6]}
50... gxh5 {[%clk 0:01:46.3]} 51. Rxh5 {[%clk 0:00:48.7]} 51... f5+ {[%clk
0:01:46.9]} 52. Rxf5 {[%clk 0:00:47.9]} 1-0

[Event "Early-Titled-Tuesday-Blitz-October-10-2023"]
[Site "Chess.com"]
[Date "2023.10.10"]
[Round "11"]
[White "falzehope0"]
[Black "Mystery2007"]
[Result "1-0"]
[WhiteElo "2342"]
[BlackElo "2462"]
[TimeControl "180+1"]
[EndTime "10:03:03 PDT"]
[Termination "falzehope0 won on time"]

1. d4 {[%clk 0:03:00.9]} 1... a6 {[%clk 0:02:59.8]} 2. e3 {[%clk 0:03:00.4]}
2... d5 {[%clk 0:02:59.6]} 3. Bd3 {[%clk 0:02:58.8]} 3... g6 {[%clk 0:02:59.5]}
4. f4 {[%clk 0:02:58.9]} 4... Bg7 {[%clk 0:02:59.8]} 5. Nf3 {[%clk 0:02:59.2]}
5... c5 {[%clk 0:02:58.3]} 6. c3 {[%clk 0:02:59]} 6... Nc6 {[%clk 0:02:50.7]} 7.
O-O {[%clk 0:02:57.3]} 7... c4 {[%clk 0:02:40.3]} 8. Bc2 {[%clk 0:02:56.4]} 8...
Bf5 {[%clk 0:02:40.7]} 9. Nbd2 {[%clk 0:02:55]} 9... Nf6 {[%clk 0:02:39.1]} 10.
Re1 {[%clk 0:02:47.6]} 10... Ne4 {[%clk 0:02:22.6]} 11. Nxe4 {[%clk 0:02:45.5]}
11... Bxe4 {[%clk 0:02:21.4]} 12. Nd2 {[%clk 0:02:27]} 12... Bxc2 {[%clk
0:02:13.4]} 13. Qxc2 {[%clk 0:02:27.9]} 13... f5 {[%clk 0:02:13.3]} 14. b3
{[%clk 0:02:26.2]} 14... b5 {[%clk 0:02:11.2]} 15. a4 {[%clk 0:02:24]} 15... O-O
{[%clk 0:02:08.3]} 16. Ba3 {[%clk 0:02:23.3]} 16... Rf7 {[%clk 0:01:47.7]} 17.
Bc5 {[%clk 0:02:22.5]} 17... e6 {[%clk 0:01:46.4]} 18. b4 {[%clk 0:02:22]} 18...
Rb7 {[%clk 0:01:38.1]} 19. a5 {[%clk 0:02:18.9]} 19... h6 {[%clk 0:01:35.2]} 20.
Nf3 {[%clk 0:02:17.9]} 20... Qe8 {[%clk 0:01:31.5]} 21. Kh1 {[%clk 0:02:15.6]}
21... Rd8 {[%clk 0:01:31.9]} 22. Rg1 {[%clk 0:02:14.9]} 22... Rdd7 {[%clk
0:01:32.4]} 23. g4 {[%clk 0:02:14.8]} 23... Kh7 {[%clk 0:01:20.5]} 24. Rg2
{[%clk 0:02:13.6]} 24... Rf7 {[%clk 0:01:05.9]} 25. Rag1 {[%clk 0:02:11.4]}
25... Bh8 {[%clk 0:00:48.4]} 26. Qf2 {[%clk 0:02:09.6]} 26... Qd8 {[%clk
0:00:40.4]} 27. Qg3 {[%clk 0:02:08.1]} 27... Nb8 {[%clk 0:00:27.7]} 28. gxf5
{[%clk 0:02:07.7]} 28... Rf6 {[%clk 0:00:11.3]} 29. fxg6+ {[%clk 0:02:06]} 29...
Kg8 {[%clk 0:00:11.2]} 30. Ne5 {[%clk 0:02:05.6]} 30... Nd7 {[%clk 0:00:09.6]}
31. Nf7 {[%clk 0:02:01.1]} 31... Qe8 {[%clk 0:00:06.7]} 32. Nxh6+ {[%clk
0:01:56.8]} 32... Kg7 {[%clk 0:00:06]} 33. Nf7 {[%clk 0:01:51.5]} 33... Nf8
{[%clk 0:00:06]} 34. Nxh8 {[%clk 0:01:50.7]} 34... Kxh8 {[%clk 0:00:01.1]} 35.
g7+ {[%clk 0:01:49.8]} 1-0